bitfinex/quotes_BTCUSD_20251015
["timestamp","ask_amount","ask_price","bid_price","bid_amount"]
[1760496700735,0.5170465,113330.0,113320.0,0.17749135]
[1760496700844,0.5170465,113330.0,113320.0,0.17649135]
[1760496701050,0.35709488,113330.0,113320.0,0.19414048]
[1760496701254,0.53357065,113330.0,113320.0,0.19414048]
[1760496701453,0.53357065,113330.0,113320.0,0.19514048]
[1760496701655,0.53357065,113330.0,113320.0,0.17749135]
[1760496702132,0.53357065,113330.0,113320.0,0.17849135]
[1760496703531,0.35709488,113330.0,113320.0,0.17849135]
[1760496703737,0.34057073,113330.0,113320.0,0.17849135]
[1760496705735,0.00057073,113330.0,113320.0,0.17849135]
[1760496705939,0.00057073,113330.0,113320.0,0.54936474]
[1760496706362,0.00057073,113330.0,113320.0,0.66032474]
[1760496706775,0.00057073,113330.0,113320.0,0.54936474]
[1760496706982,0.00057073,113330.0,113320.0,0.66032474]
[1760496707183,0.00057073,113330.0,113320.0,0.54936474]
[1760496707540,0.00057073,113330.0,113320.0,0.002]
[1760496707541,0.54791989,113330.0,113320.0,0.002]
[1760496707755,0.90441701,113330.0,113320.0,0.002]
[1760496709030,0.91825471,113330.0,113320.0,0.002]
[1760496709391,0.1765225,113300.0,113290.0,0.18536498]
[1760496709596,0.1765225,113300.0,113290.0,0.18545273]
[1760496709809,0.54739153,113310.0,113290.0,0.18545273]
[1760496710006,0.56389641,113310.0,113290.0,0.18545273]
[1760496710210,0.5777349,113310.0,113290.0,0.18545273]
[1760496710630,0.5777349,113310.0,113290.0,0.18645273]
[1760496711057,0.5777349,113310.0,113290.0,0.18545273]
[1760496711231,0.5777349,113310.0,113290.0,0.00208775]
[1760496711437,0.88739589,113300.0,113290.0,0.00208775]
[1760496711635,0.90390077,113300.0,113290.0,0.00208775]
[1760496712224,0.93045283,113300.0,113290.0,0.00208775]
[1760496712550,0.93045283,113300.0,113290.0,8.775e-05]
[1760496713012,0.93045283,113300.0,113290.0,0.00108775]
[1760496713190,0.93045283,113300.0,113290.0,8.775e-05]
[1760496715402,0.90390077,113300.0,113290.0,8.775e-05]
[1760496717781,0.94008305,113300.0,113290.0,8.775e-05]
[1760496719553,0.9400671,113300.0,113290.0,8.775e-05]
[1760496721935,0.56919371,113300.0,113290.0,8.775e-05]
[1760496722329,0.9400671,113300.0,113290.0,8.775e-05]
[1760496723103,0.92357817,113300.0,113290.0,8.775e-05]
[1760496724674,0.93742024,113300.0,113290.0,8.775e-05]
[1760496725113,0.95389817,113300.0,113290.0,8.775e-05]
[1760496725315,0.93742024,113300.0,113290.0,8.775e-05]
[1760496725643,0.95389667,113300.0,113290.0,8.775e-05]
[1760496726474,0.19036457,113300.0,113290.0,8.775e-05]
[1760496726672,0.01384207,113300.0,113290.0,0.17662583]
[1760496727090,0.35384207,113300.0,113290.0,0.17662583]
[1760496727322,0.51197658,113320.0,113290.0,0.17662583]
[1760496727721,0.34,113300.0,113290.0,0.17662583]
[1760496727909,0.5165225,113300.0,113290.0,0.17662583]
[1760496728163,0.1765225,113300.0,113290.0,0.17662583]
[1760496728590,0.27275022,113300.0,113290.0,0.17662583]
[1760496728800,0.1765225,113300.0,113290.0,0.17662583]
[1760496729024,0.1765225,113300.0,113290.0,0.17762583]
[1760496729238,0.54739153,113310.0,113300.0,0.1765225]
[1760496729239,0.17650692,113310.0,113300.0,0.1765225]
[1760496729424,0.17650692,113310.0,113290.0,0.17762583]
[1760496729638,0.17650692,113310.0,113300.0,0.1765225]
[1760496734819,0.00057073,113330.0,113320.0,0.17649135]
[1760496735562,0.00057073,113330.0,113320.0,0.19414048]
[1760496736001,0.00057073,113330.0,113320.0,0.56601387]
[1760496736324,0.00057073,113330.0,113320.0,0.17849135]
[1760496736657,0.1770465,113330.0,113320.0,0.19614048]
[1760496736857,0.1770465,113330.0,113320.0,0.002]
[1760496736858,0.54791989,113330.0,113320.0,0.002]
[1760496737183,0.00057073,113330.0,113320.0,0.19614048]
[1760496737892,0.00057073,113330.0,113320.0,0.17849135]
[1760496742786,0.17647577,113330.0,113320.0,0.17849135]
[1760496742993,0.54714303,113330.0,113320.0,0.17849135]
[1760496743170,0.54714303,113330.0,113320.0,0.002]
[1760496743372,0.17647577,113330.0,113320.0,0.002]
[1760496743608,0.54714303,113330.0,113320.0,0.002]
[1760496744152,0.54714303,113330.0,113320.0,0.001]
[1760496744353,0.51179465,113340.0,113320.0,0.17649135]
[1760496744607,0.54714303,113330.0,113320.0,0.17649135]
[1760496746284,0.37066726,113330.0,113320.0,0.17649135]
[1760496746515,0.17647577,113330.0,113320.0,0.19414048]
[1760496747864,0.88712858,113340.0,113320.0,0.19414048]
[1760496748092,0.17647577,113330.0,113320.0,0.19414048]
[1760496748787,0.54714303,113330.0,113320.0,0.19414048]
[1760496751010,0.17647577,113330.0,113320.0,0.19414048]
[1760496751235,0.88712858,113340.0,113320.0,0.19414048]
[1760496751482,0.90361561,113340.0,113320.0,0.19414048]
[1760496751711,0.57827606,113350.0,113330.0,0.17647577]
[1760496751919,0.59476219,113350.0,113330.0,0.17647577]
[1760496752433,0.00057067,113340.0,113330.0,0.54714303]
[1760496752633,0.00057067,113340.0,113330.0,0.17647577]
[1760496753058,0.00057067,113340.0,113330.0,0.19412334]
[1760496754053,0.00057067,113340.0,113330.0,0.19512334]
[1760496754266,0.00057067,113340.0,113330.0,0.17747577]
[1760496755317,0.00057067,113340.0,113330.0,0.17847577]
[1760496756884,0.00057067,113340.0,113330.0,0.28939577]
[1760496757366,0.00057067,113340.0,113330.0,0.17847577]
[1760496757567,0.00057067,113340.0,113330.0,0.28939577]
[1760496757990,0.17703087,113340.0,113330.0,0.28939577]
[1760496758195,0.54769813,113340.0,113330.0,0.002]
[1760496758402,1.27487665,113340.0,113330.0,0.002]
[1760496759914,1.64554391,113340.0,113330.0,0.002]
[1760496760350,1.65938106,113340.0,113330.0,0.001]
[1760496760556,0.54737928,113340.0,113330.0,0.001]
[1760496760764,0.54737928,113340.0,113300.0,0.18534796]
[1760496760765,0.17650692,113310.0,113300.0,0.18534796]
[1760496760966,0.54717418,113310.0,113300.0,0.17661025]
[1760496761104,0.56369679,113310.0,113300.0,0.01774]
[1760496761309,0.56369679,113310.0,113300.0,0.1942625]
[1760496761503,0.01652261,113310.0,113300.0,0.1942625]
[1760496761719,0.03679047,113310.0,113300.0,0.1942625]
[1760496762297,0.40745773,113310.0,113300.0,0.1952625]
[1760496762504,0.40745773,113310.0,113300.0,0.17761025]
[1760496763160,0.40745773,113310.0,113300.0,0.17861025]
[1760496765990,0.58396465,113310.0,113300.0,0.00208775]
[1760496766226,0.21329739,113310.0,113300.0,0.01974]
[1760496766422,0.58396465,113310.0,113300.0,0.01974]
[1760496767036,0.58396465,113310.0,113300.0,0.01874]
[1760496767242,0.58396465,113310.0,113300.0,0.01774]
[1760496767529,0.58396465,113310.0,113300.0,0.00108775]
[1760496767728,0.58396465,113310.0,113300.0,0.00208775]
[1760496768003,0.21329739,113310.0,113300.0,0.00208775]
[1760496768200,0.58396465,113310.0,113300.0,0.00208775]
[1760496768418,0.58396465,113310.0,113300.0,0.00108775]
[1760496768834,0.58396465,113310.0,113300.0,8.775e-05]
[1760496769785,0.58396465,113310.0,113300.0,0.17661025]
[1760496773680,0.19916321,113330.0,113300.0,0.55610363]
[1760496773891,0.016513,113330.0,113320.0,0.17649135]
[1760496774089,0.54714303,113330.0,113320.0,0.17649135]
[1760496774324,0.90365603,113330.0,113320.0,0.17649135]
[1760496774711,0.92375106,113330.0,113320.0,0.17649135]
[1760496775085,0.92375106,113330.0,113310.0,0.17649507]
[1760496775304,0.92375106,113330.0,113310.0,0.19414576]
[1760496775711,0.5530838,113330.0,113310.0,0.19414576]
[1760496776432,0.92375106,113330.0,113310.0,0.19414576]
[1760496778218,0.5365708,113330.0,113310.0,0.19414576]
[1760496778421,0.90723806,113330.0,113310.0,0.19414576]
[1760496780326,0.90723806,113330.0,113320.0,0.17649135]
[1760496781268,0.90723806,113330.0,113310.0,0.17649507]
[1760496781469,0.90723806,113330.0,113310.0,0.19414576]
[1760496781668,0.17649135,113320.0,113310.0,0.19414576]
[1760496781883,0.54715861,113320.0,113310.0,0.19414576]
[1760496782283,0.54715861,113320.0,113310.0,0.19415761]
[1760496783672,0.54715861,113320.0,113310.0,0.17650692]
[1760496783876,0.54715861,113320.0,113300.0,8.775e-05]
[1760496783877,0.17650692,113310.0,113300.0,8.775e-05]
[1760496784079,1.6285087,113310.0,113300.0,8.775e-05]
[1760496784281,1.25784144,113310.0,113300.0,8.775e-05]
[1760496784519,1.31000709,113310.0,113300.0,8.775e-05]
[1760496784720,1.69741509,113310.0,113300.0,8.775e-05]
[1760496785129,1.70309973,113310.0,113300.0,1e-08]
[1760496785333,0.55270478,113300.0,113290.0,0.00265511]
[1760496785538,1.68131815,113300.0,113290.0,0.00265511]
[1760496785756,1.69751834,113300.0,113290.0,0.00265511]
[1760496785973,1.68123215,113300.0,113290.0,0.00265511]
[1760496786182,1.66503196,113300.0,113290.0,0.00265511]
[1760496786390,1.29412697,113300.0,113290.0,0.00265511]
[1760496787053,0.53313441,113300.0,113290.0,0.00265511]
[1760496787266,0.90380167,113300.0,113290.0,0.00265511]
[1760496787493,0.53313441,113300.0,113290.0,0.00265511]
[1760496787723,0.88727743,113300.0,113290.0,0.00265511]
[1760496787934,0.90380496,113300.0,113290.0,0.00265511]
[1760496788271,0.88727743,113300.0,113290.0,0.00365511]
[1760496788674,0.90380971,113300.0,113290.0,0.00365511]
[1760496789166,0.90380971,113300.0,113290.0,0.00465511]
[1760496789369,0.53314245,113300.0,113290.0,0.00465511]
[1760496792495,1.06003089,113300.0,113290.0,0.00465511]
[1760496792696,0.53314245,113300.0,113290.0,0.00465511]
[1760496792936,1.06003089,113300.0,113290.0,0.00465511]
[1760496793365,0.35661995,113300.0,113290.0,0.19884699]
[1760496793538,0.35661995,113300.0,113290.0,0.18119319]
[1760496801362,0.53314245,113300.0,113290.0,0.18119319]
[1760496802908,1.06003089,113300.0,113290.0,0.00465511]
[1760496803553,1.18088503,113300.0,113290.0,0.00465511]
[1760496805505,1.18088503,113300.0,113290.0,0.00265511]
[1760496808970,0.94010039,113300.0,113290.0,0.00265511]
[1760496809203,0.84088503,113300.0,113290.0,0.00265511]
[1760496809406,0.86743839,113300.0,113290.0,0.00265511]
[1760496811246,1.20743839,113300.0,113290.0,0.00265511]
[1760496811451,0.91412986,113300.0,113290.0,0.00265511]
[1760496817099,1.32136614,113300.0,113290.0,0.00265511]
[1760496817288,0.95031214,113300.0,113290.0,0.00265511]
[1760496818544,0.96415389,113300.0,113290.0,0.00265511]
[1760496820708,0.98045019,113300.0,113290.0,0.00265511]
[1760496825122,0.96660844,113300.0,113290.0,0.00265511]
[1760496826594,0.6138966,113300.0,113290.0,0.00265511]
[1760496826787,0.64045254,113300.0,113290.0,0.00265511]
[1760496827229,0.65698842,113300.0,113290.0,0.00265511]
[1760496828598,0.99698842,113300.0,113290.0,0.00265511]
[1760496830678,0.9831469,113300.0,113290.0,0.00265511]
[1760496833154,1.3542009,113300.0,113290.0,0.00265511]
[1760496833369,1.36247622,113300.0,113290.0,0.00265511]
[1760496833770,1.41293117,113300.0,113290.0,0.00265511]
[1760496834734,1.38154413,113300.0,113290.0,0.00265511]
[1760496835137,1.38354413,113300.0,113290.0,0.00265511]
[1760496836687,1.39738651,113300.0,113290.0,0.00265511]
[1760496837277,1.89738651,113300.0,113290.0,0.00265511]
[1760496841315,1.88354413,113300.0,113290.0,0.00265511]
[1760496842326,1.47712592,113300.0,113290.0,0.00265511]
[1760496842535,1.4688506,113300.0,113290.0,0.00265511]
[1760496843469,1.48936239,113300.0,113290.0,0.00265511]
[1760496843671,1.51148457,113300.0,113290.0,0.00265511]
[1760496843876,1.88253857,113300.0,113290.0,0.00265511]
[1760496844188,1.51148457,113300.0,113290.0,0.00265511]
[1760496844393,1.53056284,113300.0,113290.0,0.00265511]
[1760496845260,1.51148457,113300.0,113290.0,0.00265511]
[1760496846324,1.88253857,113300.0,113290.0,0.00265511]
[1760496847251,1.51610135,113300.0,113290.0,0.00265511]
[1760496847890,1.88715535,113300.0,113290.0,0.00265511]
[1760496848905,1.88718467,113300.0,113290.0,0.00265511]
[1760496849480,1.51613067,113300.0,113290.0,0.00265511]
[1760496849855,1.30342589,113300.0,113290.0,0.00265511]
[1760496850019,1.47994839,113300.0,113290.0,0.00265511]
[1760496850441,1.85194906,113300.0,113290.0,0.00265511]
[1760496850755,1.88238943,113300.0,113290.0,1e-08]
[1760496850922,1.85094063,113300.0,113290.0,1e-08]
[1760496851105,1.9072879,113300.0,113290.0,1e-08]
[1760496851942,1.94347018,113300.0,113290.0,1e-08]
[1760496852343,2.40420868,113300.0,113290.0,1e-08]
[1760496852565,0.51658484,113260.0,113250.0,0.0004]
[1760496852761,0.90420404,113260.0,113250.0,0.0004]
[1760496852935,0.92472801,113260.0,113250.0,0.0004]
[1760496853336,0.95129538,113260.0,113250.0,0.0004]
[1760496853758,0.90425368,113260.0,113250.0,0.0004]
[1760496854011,0.71110364,113260.0,113250.0,0.17700044]
[1760496854160,0.72889689,113260.0,113250.0,0.17700044]
[1760496854637,0.51784289,113260.0,113250.0,0.19466048]
[1760496854777,0.50004964,113260.0,113250.0,0.19466048]
[1760496855442,0.50004964,113260.0,113250.0,0.56671448]
[1760496855727,0.50004964,113260.0,113250.0,0.54905444]
[1760496855931,0.50004964,113260.0,113250.0,0.54805444]
[1760496856344,0.50004964,113260.0,113250.0,0.55005444]
[1760496856538,0.50004964,113260.0,113250.0,0.5673622]
[1760496856741,0.50004964,113260.0,113250.0,0.5663622]
[1760496856966,0.50004964,113260.0,113250.0,0.55005444]
[1760496857620,0.50004964,113260.0,113250.0,0.86296783]
[1760496858159,0.50004964,113260.0,113250.0,0.86525276]
[1760496858354,4.964e-05,113260.0,113250.0,0.86525276]
[1760496858559,4.964e-05,113260.0,113250.0,0.95494288]
[1760496860372,4.964e-05,113260.0,113250.0,0.97298774]
[1760496863227,4.964e-05,113260.0,113250.0,1.11053806]
[1760496865659,4.964e-05,113260.0,113250.0,0.33370809]
[1760496866021,4.964e-05,113260.0,113250.0,0.44466809]
[1760496866233,4.964e-05,113260.0,113250.0,0.33370809]
[1760496866838,4.964e-05,113260.0,113250.0,0.44466809]
[1760496867039,4.964e-05,113260.0,113250.0,0.86061436]
[1760496867244,4.964e-05,113260.0,113250.0,0.97157436]
[1760496868309,4.964e-05,113260.0,113250.0,0.86061436]
[1760496868497,4.964e-05,113260.0,113250.0,0.97157436]
[1760496869822,4.964e-05,113260.0,113250.0,0.86061436]
[1760496870029,4.964e-05,113260.0,113250.0,0.97157436]
[1760496872613,4.964e-05,113260.0,113250.0,0.86061436]
[1760496872817,4.964e-05,113260.0,113250.0,0.97157436]
[1760496873237,4.964e-05,113260.0,113250.0,0.86061436]
[1760496873449,4.964e-05,113260.0,113250.0,0.97157436]
[1760496874639,4.964e-05,113260.0,113250.0,0.86061436]
[1760496874812,4.964e-05,113260.0,113250.0,0.97157436]
[1760496877368,4.964e-05,113260.0,113250.0,0.81560668]
[1760496878025,4.964e-05,113260.0,113250.0,0.44466809]
[1760496878222,4.964e-05,113260.0,113250.0,0.70464668]
[1760496878729,4.964e-05,113260.0,113250.0,0.81560668]
[1760496879205,4.964e-05,113260.0,113250.0,0.70464668]
[1760496879418,4.964e-05,113260.0,113250.0,0.33370809]
[1760496879640,4.964e-05,113260.0,113250.0,0.18128537]
[1760496879850,0.37098823,113260.0,113250.0,0.18128537]
[1760496880816,0.37098823,113260.0,113250.0,0.18028537]
[1760496881632,0.37098823,113260.0,113250.0,0.18128537]
[1760496887520,4.964e-05,113260.0,113250.0,0.18128537]
[1760496887686,0.37098823,113260.0,113250.0,0.18128537]
[1760496889125,0.54757307,113260.0,113250.0,0.18128537]
[1760496889324,0.91851166,113260.0,113250.0,0.18128537]
[1760496889682,1.25851166,113260.0,113250.0,0.18128537]
[1760496890143,1.25846202,113260.0,113250.0,0.18128537]
[1760496890272,1.08187718,113260.0,113250.0,0.18128537]
[1760496890674,0.71093859,113260.0,113250.0,0.18128537]
[1760496891290,0.88752343,113260.0,113250.0,0.18128537]
[1760496891652,1.08187718,113260.0,113250.0,0.18128537]
[1760496891878,0.71093859,113260.0,113250.0,0.18128537]
[1760496892445,1.25846202,113260.0,113250.0,0.18128537]
[1760496894068,1.08192118,113260.0,113250.0,0.18128537]
[1760496894368,1.08187718,113260.0,113250.0,0.18128537]
[1760496895125,0.71093859,113260.0,113250.0,0.18128537]
[1760496895667,1.08187718,113260.0,113250.0,0.18128537]
[1760496897262,1.25846202,113260.0,113250.0,0.18128537]
[1760496899103,1.25846202,113260.0,113250.0,0.00468493]
[1760496899324,1.25846202,113260.0,113250.0,0.18128537]
[1760496900341,1.25846202,113260.0,113250.0,0.00468493]
[1760496900907,1.62940061,113260.0,113250.0,0.00468493]
[1760496901261,1.25846202,113260.0,113250.0,0.00368493]
[1760496901463,1.25846202,113260.0,113250.0,0.00268493]
[1760496901686,1.25846202,113260.0,113250.0,0.00468493]
[1760496902093,1.62940061,113260.0,113250.0,0.00268493]
[1760496904269,1.64593012,113260.0,113250.0,0.00268493]
[1760496904484,1.65977659,113260.0,113250.0,0.00268493]
[1760496904649,1.66331882,113260.0,113250.0,0.00268493]
[1760496907290,1.68311007,113260.0,113250.0,0.00268493]
[1760496907751,1.6961584,113260.0,113250.0,0.00268493]
[1760496907983,1.73234068,113260.0,113250.0,0.00268493]
[1760496908185,1.71929235,113260.0,113250.0,0.00268493]
[1760496909086,1.71928501,113260.0,113250.0,0.00268493]
[1760496910564,1.69949376,113260.0,113250.0,0.00268493]
[1760496914685,2.14499376,113260.0,113250.0,0.00268493]
[1760496916177,3.27941232,113260.0,113250.0,1e-08]
[1760496916395,3.28508867,113260.0,113250.0,1e-08]
[1760496917203,3.28708867,113260.0,113250.0,1e-08]
[1760496918210,0.55278272,113250.0,113240.0,1e-08]
[1760496918415,1.70114322,113250.0,113240.0,1e-08]
[1760496918638,0.55279831,113240.0,113230.0,1e-08]
[1760496918813,1.68213625,113240.0,113230.0,1e-08]
[1760496919271,0.58834071,113240.0,113230.0,1e-08]
[1760496919465,1.70469956,113240.0,113230.0,1e-08]
[1760496920234,2.1443366,113240.0,113230.0,1e-08]
[1760496920619,2.1443366,113240.0,113220.0,1e-08]
[1760496920620,0.51663163,113230.0,113220.0,1e-08]
[1760496920929,1.70117101,113230.0,113220.0,1e-08]
[1760496921249,1.72302926,113230.0,113220.0,1e-08]
[1760496923561,1.75083296,113230.0,113220.0,1e-08]
[1760496923970,1.75183296,113230.0,113220.0,1e-08]
[1760496924172,1.74249721,113230.0,113220.0,1e-08]
[1760496924372,1.74349721,113230.0,113220.0,1e-08]
[1760496925521,1.8739594,113230.0,113220.0,1e-08]
[1760496926389,1.9017631,113230.0,113220.0,1e-08]
[1760496926603,1.8739594,113230.0,113220.0,1e-08]
[1760496926826,1.88872708,113230.0,113220.0,1e-08]
[1760496928600,1.89227057,113230.0,113220.0,1e-08]
[1760496928905,1.92977574,113230.0,113220.0,0.00171447]
[1760496929104,1.95757944,113230.0,113220.0,1e-08]
[1760496929310,1.95757944,113230.0,113210.0,1e-08]
[1760496929311,0.56631333,113220.0,113210.0,1e-08]
[1760496929583,1.74054984,113220.0,113210.0,1e-08]
[1760496930162,1.74409388,113220.0,113210.0,1e-08]
[1760496930374,1.74509388,113220.0,113210.0,1e-08]
[1760496930530,1.74509388,113220.0,113210.0,0.00049741]
[1760496930738,1.71729018,113220.0,113210.0,0.00049741]
[1760496931409,1.71829018,113220.0,113210.0,0.00049741]
[1760496931694,1.73214353,113220.0,113210.0,0.00049741]
[1760496932129,1.763934,113220.0,113210.0,0.00049741]
[1760496932336,1.87142317,113220.0,113210.0,0.00049741]
[1760496932551,0.17666283,113210.0,113190.0,0.00028]
[1760496932791,1.30426666,113210.0,113200.0,0.00028767]
[1760496933093,1.34514822,113210.0,113200.0,0.00028767]
[1760496933331,0.60138901,113210.0,113200.0,0.00028767]
[1760496933532,1.34466697,113210.0,113200.0,0.00028767]
[1760496934952,1.8716281,113210.0,113200.0,0.00028767]
[1760496935127,1.84784986,113210.0,113200.0,0.00028767]
[1760496935305,1.82088873,113210.0,113200.0,0.00143099]
[1760496939050,1.84869243,113210.0,113200.0,0.00143099]
[1760496939276,1.85002578,113210.0,113200.0,0.00143099]
[1760496939486,1.82222208,113210.0,113200.0,0.00143099]
[1760496939834,1.91190416,113210.0,113200.0,0.00143099]
[1760496940260,1.84600032,113210.0,113200.0,0.00143099]
[1760496940462,1.84466697,113210.0,113200.0,0.00143099]
[1760496940668,1.44924975,113210.0,113200.0,0.00143099]
[1760496940877,1.42738735,113210.0,113200.0,0.00143099]
[1760496942577,1.03672921,113210.0,113200.0,0.00143099]
[1760496942776,1.06482398,113210.0,113200.0,0.00143099]
[1760496943013,1.40482398,113210.0,113200.0,0.00143099]
[1760496943380,1.42385249,113210.0,113200.0,0.00143099]
[1760496943611,1.44571541,113210.0,113200.0,0.00143099]
[1760496944018,1.45956829,113210.0,113200.0,0.00143099]
[1760496944236,1.83120727,113210.0,113200.0,0.00143099]
[1760496944440,1.45956829,113210.0,113200.0,0.00143099]
[1760496945080,1.48334653,113210.0,113200.0,0.00143099]
[1760496945766,1.48334653,113210.0,113200.0,0.00243099]
[1760496946138,1.48334653,113210.0,113200.0,0.00143099]
[1760496946341,1.11997815,113210.0,113200.0,0.00143099]
[1760496946537,1.49161713,113210.0,113200.0,0.00143099]
[1760496950675,0.51667844,113200.0,113190.0,0.00028]
[1760496950907,1.29550708,113200.0,113190.0,0.00042925]
[1760496951110,1.29550708,113200.0,113190.0,0.00100102]
[1760496951333,1.29905108,113200.0,113190.0,0.00100102]
[1760496952115,1.35709629,113200.0,113190.0,0.00100102]
[1760496952913,1.85709629,113200.0,113190.0,0.00100102]
[1760496955717,1.87285934,113200.0,113190.0,0.00100102]
[1760496956363,1.85633717,113200.0,113190.0,0.00100102]
[1760496956582,1.87291168,113200.0,113190.0,0.00100102]
[1760496956815,1.90879096,113200.0,113190.0,0.00100102]
[1760496957037,1.94085661,113200.0,113190.0,0.00100102]
[1760496957274,1.88119909,113200.0,113190.0,0.00100102]
[1760496957742,1.91883197,113200.0,113190.0,0.00100102]
[1760496958199,1.89505373,113200.0,113190.0,0.00100102]
[1760496958544,1.91883197,113200.0,113190.0,0.00100102]
[1760496959149,1.89505373,113200.0,113190.0,0.00100102]
[1760496960836,1.88119909,113200.0,113190.0,0.00100102]
[1760496961077,1.88120558,113200.0,113190.0,0.00100102]
[1760496961719,1.99869136,113200.0,113190.0,0.00100102]
[1760496961932,1.93278752,113200.0,113190.0,0.00100102]
[1760496962140,1.90900928,113200.0,113190.0,0.00100102]
[1760496962785,1.88120558,113200.0,113190.0,0.00100102]
[1760496962994,1.88120558,113200.0,113190.0,1e-08]
[1760496963197,2.35024873,113200.0,113190.0,1e-08]
[1760496963400,1.3167889,113200.0,113190.0,1e-08]
[1760496963608,2.06006686,113200.0,113190.0,1e-08]
[1760496963811,1.96046312,113200.0,113190.0,1e-08]
[1760496964024,1.93265942,113200.0,113190.0,1e-08]
[1760496964252,2.32916239,113200.0,113190.0,1e-08]
[1760496964466,2.35696609,113200.0,113190.0,1e-08]
[1760496964718,1.98532711,113200.0,113190.0,1e-08]
[1760496964925,1.96146312,113200.0,113190.0,1e-08]
[1760496965141,1.93465942,113200.0,113190.0,1e-08]
[1760496965347,1.95851203,113200.0,113190.0,1e-08]
[1760496965693,2.33015101,113200.0,113190.0,1e-08]
[1760496965890,1.95851203,113200.0,113190.0,1e-08]
[1760496966153,0.51669405,113190.0,113180.0,1e-08]
[1760496966349,1.74902716,113190.0,113180.0,8.699e-05]
[1760496966563,1.82280706,113190.0,113180.0,8.699e-05]
[1760496967114,1.8263522,113190.0,113180.0,8.699e-05]
[1760496967320,1.8283522,113190.0,113180.0,8.699e-05]
[1760496967945,1.82734453,113190.0,113180.0,8.699e-05]
[1760496968420,1.82834453,113190.0,113180.0,8.699e-05]
[1760496968573,2.38753882,113190.0,113180.0,8.699e-05]
[1760496968783,2.38853882,113190.0,113180.0,8.699e-05]
[1760496969374,1.95730567,113190.0,113180.0,8.699e-05]
[1760496969584,1.93544273,113190.0,113180.0,8.699e-05]
[1760496969787,1.91159012,113190.0,113180.0,8.699e-05]
[1760496970000,1.87540784,113190.0,113180.0,8.699e-05]
[1760496970426,1.91159012,113190.0,113180.0,8.699e-05]
[1760496970636,1.84558868,113190.0,113180.0,8.699e-05]
[1760496971635,1.88067885,113190.0,113180.0,8.699e-05]
[1760496971842,1.84558868,113190.0,113180.0,8.699e-05]
[1760496972400,1.86745162,113190.0,113180.0,8.699e-05]
[1760496973047,1.86740746,113190.0,113180.0,8.699e-05]
[1760496973774,1.88126467,113190.0,113180.0,0.00065882]
[1760496974517,1.85940173,113190.0,113180.0,0.00065882]
[1760496974720,1.83210103,113190.0,113180.0,0.00065882]
[1760496975800,1.83110103,113190.0,113180.0,0.00065882]
[1760496976287,1.83210103,113190.0,113180.0,0.00065882]
[1760496976499,1.83110103,113190.0,113180.0,0.00065882]
[1760496976814,1.81555664,113190.0,113180.0,0.00065882]
[1760496977019,1.83210286,113190.0,113180.0,0.00065882]
[1760496977449,1.79592058,113190.0,113180.0,0.00065882]
[1760496977654,1.08073646,113190.0,113180.0,0.00065882]
[1760496977853,1.06419024,113190.0,113180.0,0.00065882]
[1760496978234,0.8333073,113190.0,113180.0,0.00065882]
[1760496978459,1.35000135,113190.0,113180.0,0.00065882]
[1760496978653,1.40418935,113190.0,113180.0,0.00065882]
[1760496978876,1.77582833,113190.0,113180.0,0.00065882]
[1760496979076,1.79727765,113190.0,113180.0,0.00065882]
[1760496979283,1.81382575,113190.0,113180.0,0.00065882]
[1760496980197,1.81737005,113190.0,113180.0,0.00065882]
[1760496981996,1.80351284,113190.0,113180.0,0.00065882]
[1760496982587,1.78206352,113190.0,113180.0,0.00065882]
[1760496983399,1.77851922,113190.0,113180.0,0.00065882]
[1760496984110,1.76197112,113190.0,113180.0,0.00065882]
[1760496985091,1.03254855,113190.0,113180.0,0.00065882]
[1760496985322,1.40418753,113190.0,113180.0,0.00065882]
[1760496986581,1.40318753,113190.0,113180.0,0.00065882]
[1760496987119,1.40218753,113190.0,113180.0,0.00065882]
[1760496987567,1.03054855,113190.0,113180.0,0.00065882]
[1760496987753,1.76397447,113190.0,113180.0,0.00065882]
[1760496987955,1.77397447,113190.0,113180.0,0.00065882]
[1760496988855,1.40226151,113190.0,113180.0,0.00065882]
[1760496990307,1.77397447,113190.0,113180.0,0.00065882]
[1760496992821,1.27397536,113190.0,113180.0,0.00065882]
[1760496994595,0.53054944,113190.0,113180.0,0.00065882]
[1760496994861,0.37171296,113190.0,113180.0,0.17736848]
[1760496995301,0.38747601,113200.0,113190.0,0.17669405]
[1760496995478,0.90415445,113200.0,113190.0,0.17669405]
[1760496995856,0.34,113190.0,113180.0,0.17736848]
[1760496996078,0.19244178,113200.0,113180.0,0.17836848]
[1760496996303,0.56415474,113200.0,113190.0,0.19436345]
[1760496996550,1.2758677,113200.0,113190.0,0.19436345]
[1760496996752,0.90415474,113200.0,113190.0,0.19436345]
[1760496997635,1.2758677,113200.0,113190.0,0.0176694]
[1760496997870,0.34,113190.0,113180.0,0.17736848]
[1760496998058,0.71171296,113190.0,113180.0,0.17736848]
[1760496998265,0.88840701,113190.0,113180.0,0.00065882]
[1760496998443,0.71171296,113190.0,113180.0,0.17736848]
[1760496998645,0.88840701,113190.0,113180.0,0.19503944]
[1760496998845,0.88840701,113190.0,113180.0,0.17736848]
[1760496999070,0.88840701,113190.0,113180.0,0.17836848]
[1760497001425,0.71171296,113190.0,113180.0,0.17836848]
[1760497001609,0.88840701,113190.0,113180.0,0.17836848]
[1760497005424,0.88840701,113190.0,113180.0,0.00165882]
[1760497009020,0.51669405,113190.0,113180.0,0.00165882]
[1760497009214,0.88840701,113190.0,113180.0,0.00165882]
[1760497009979,0.88840701,113190.0,113180.0,0.17836848]
[1760497013349,0.51669405,113190.0,113180.0,0.17836848]
[1760497013696,0.88840701,113190.0,113180.0,0.17836848]
[1760497015610,0.71171296,113190.0,113180.0,0.17836848]
[1760497015805,0.34,113190.0,113180.0,0.17836848]
[1760497016007,0.71171296,113190.0,113180.0,0.17836848]
[1760497016783,0.71171296,113190.0,113180.0,0.17867748]
[1760497018926,0.88840701,113190.0,113180.0,0.17867748]
[1760497020078,0.51669405,113190.0,113180.0,0.17867748]
[1760497020235,0.88840701,113190.0,113180.0,0.17867748]
[1760497021426,1.26011997,113190.0,113180.0,0.00196782]
[1760497022872,0.88840701,113190.0,113180.0,0.00196782]
[1760497027466,1.26011997,113190.0,113180.0,0.00196782]
[1760497028300,1.27670267,113190.0,113180.0,0.00196782]
[1760497028502,1.71678093,113190.0,113180.0,1e-08]
[1760497028655,0.58069156,113180.0,113170.0,1e-08]
[1760497028859,2.85494082,113180.0,113170.0,4.965e-05]
[1760497029175,1.71200232,113180.0,113170.0,4.965e-05]
[1760497029413,1.70676015,113180.0,113170.0,4.965e-05]
[1760497030154,1.70776015,113180.0,113170.0,4.965e-05]
[1760497030358,1.69947168,113180.0,113170.0,4.965e-05]
[1760497030841,1.68561352,113180.0,113170.0,4.965e-05]
[1760497031234,1.68557888,113180.0,113170.0,4.965e-05]
[1760497031413,1.47268694,113180.0,113170.0,4.965e-05]
[1760497031791,1.47368694,113180.0,113170.0,4.965e-05]
[1760497032136,1.6503966,113180.0,113170.0,4.965e-05]
[1760497033733,1.6642543,113180.0,113170.0,4.965e-05]
[1760497033927,0.53256736,113180.0,113170.0,4.965e-05]
[1760497034129,1.09928362,113180.0,113170.0,0.17677493]